fUST/lending_fUST_20260107
["ID","MTS","AMOUNT","RATE_DAILY","PERIOD"]
[400563589,1767721841452,-228.78,0.000192,2]
[400563590,1767721841461,-2760.87,0.000192,2]
[400563591,1767721841471,-167.75,0.000192,2]
[400563592,1767721841480,-24466.81,0.000192,2]
[400563593,1767721841490,-1000.0,0.00019381,2]
[400563594,1767721841499,-492.0,0.00019381,2]
[400563595,1767721841508,-163.06318377,0.00019426,2]
[400563596,1767721841518,-411.4624531,0.00019463,2]
[400563597,1767721841527,-272.0,0.00019534,3]
[400563598,1767721841536,-648.93473211,0.00019726,2]
[400563599,1767721841545,-10115.60945091,0.00019762,2]
[400563600,1767721841555,-2000.0,0.0002,7]
[400563601,1767721841564,-183.3,0.00020018,2]
[400563602,1767721841573,-643.21587351,0.00020356,12]
[400563603,1767721841583,-2000.0,0.00020774,3]
[400563604,1767721841592,-2000.0,0.00020782,3]
[400563605,1767721841601,-2000.0,0.00020791,3]
[400563606,1767721841610,-2000.0,0.000208,3]
[400563607,1767721841620,-2000.0,0.000208,3]
[400563608,1767721841630,-500.0,0.00021,7]
[400563609,1767721841640,-2000.0,0.00021,7]
[400563610,1767721841649,-168.0,0.00021178,4]
[400563611,1767721841660,-1000.0,0.00021319,10]
[400563612,1767721841673,-791.0,0.00021319,10]
[400563613,1767721841686,-454.52247727,0.00021463,2]
[400563614,1767721841695,-183.3,0.00021787,2]
[400563615,1767721841704,-752.59422576,0.00021838,15]
[400563616,1767721841713,-625.0,0.00021914,2]
[400563617,1767721841723,-3283.93,0.00022,7]
[400563618,1767721841732,-2000.0,0.00022,7]
[400563619,1767721841741,-625.0,0.00022004,2]
[400563620,1767721841750,-11034.61992399,0.00022092,2]
[400563621,1767721841760,-24466.81,0.000221,2]
[400563622,1767721841769,-625.0,0.00022192,2]
[400563623,1767721841780,-625.0,0.0002222,2]
[400563624,1767721841789,-625.0,0.00022252,2]
[400563625,1767721841799,-625.0,0.00022287,2]
[400563626,1767721841808,-625.0,0.00022309,2]
[400563627,1767721841817,-625.0,0.00022352,2]
[400563628,1767721841826,-625.0,0.00022382,2]
[400563629,1767721841840,-300.0,0.00022466,2]
[400563630,1767721841849,-156.04,0.00022534,2]
[400563631,1767721841858,-625.0,0.00022619,2]
[400563632,1767721841867,-625.0,0.00022642,2]
[400563633,1767721841878,-625.0,0.00022798,2]
[400563634,1767721841887,-170.0,0.00022822,8]
[400563635,1767721841897,-625.0,0.00022849,2]
[400563636,1767721841906,-1041.66666667,0.00023,3]
[400563637,1767721841916,-2000.0,0.00023,7]
[400563638,1767721841925,-450.0,0.00023014,2]
[400563639,1767721841934,-625.0,0.00023089,2]
[400563640,1767721841944,-2760.87,0.000231,14]
[400563641,1767721841954,-625.0,0.00023132,2]
[400563642,1767721841963,-500.0,0.00023158,2]
[400563643,1767721841973,-2100.0,0.00023166,2]
[400563644,1767721841982,-500.0,0.00023173,2]
[400563645,1767721841991,-625.0,0.00023178,2]
[400563646,1767721841999,-625.0,0.00023199,2]
[400563647,1767721842009,-268.84,0.000232,7]
[400563648,1767721842018,-228.78,0.000232,7]
[400563649,1767721842027,-625.0,0.00023204,2]
[400563650,1767721842036,-2100.0,0.00023235,2]
[400563651,1767721842045,-500.0,0.00023266,2]
[400563652,1767721842054,-500.0,0.00023274,2]
[400563653,1767721842063,-10115.60945091,0.00023279,2]
[400563654,1767721842072,-869.04115689,0.0002332,18]
[400563655,1767721842081,-587.58501506,0.00023339,2]
[400563656,1767721842090,-500.0,0.00023342,2]
[400563657,1767721842099,-2100.0,0.00023344,2]
[400563658,1767721842108,-500.0,0.00023372,2]
[400563659,1767721842118,-625.0,0.00023377,2]
[400563660,1767721842127,-2100.0,0.00023383,2]
[400563661,1767721842139,-2100.0,0.00023388,2]
[400563662,1767721842153,-500.0,0.00023401,2]
[400563663,1767721842166,-625.0,0.00023405,2]
[400563664,1767721842180,-2100.0,0.0002344,2]
[400563665,1767721842192,-625.0,0.0002345,2]
[400563666,1767721842202,-1000.0,0.00023451,10]
[400563667,1767721842214,-1000.0,0.00023451,10]
[400563668,1767721842226,-497.58250143,0.00023463,2]
[400563669,1767721842238,-2100.0,0.00023485,2]
[400563670,1767721842250,-2000.0,0.00023552,7]
[400563671,1767721842263,-2000.0,0.00023552,7]
[400563672,1767721842274,-952.066,0.00023552,7]
[400563673,1767721842287,-1000.0,0.00023552,7]
[400563674,1767721842300,-1000.0,0.00023552,7]
[400563675,1767721842314,-1000.0,0.00023552,7]
[400563676,1767721842326,-1000.0,0.00023552,7]
[400563677,1767721842338,-1000.0,0.00023552,7]
[400563679,1767721842352,-1000.0,0.00023552,7]
[400563682,1767721842364,-1000.0,0.00023552,7]
[400563685,1767721842378,-1000.0,0.00023552,7]
[400563686,1767721842393,-1000.0,0.00023552,7]
[400563687,1767721842407,-475.0,0.00023552,7]
[400563688,1767721842418,-475.0,0.00023552,7]
[400563689,1767721842429,-475.0,0.00023552,7]
[400563690,1767721842440,-475.0,0.00023552,7]
[400563691,1767721842450,-475.0,0.00023552,7]
[400563692,1767721842463,-475.0,0.00023552,7]
[400563693,1767721842475,-475.0,0.00023552,7]
[400563694,1767721842487,-475.0,0.00023552,7]
[400563695,1767721842499,-475.0,0.00023552,7]
[400563696,1767721842513,-475.0,0.00023552,7]
[400563697,1767721842526,-475.0,0.00023552,7]
[400563698,1767721842539,-475.0,0.00023552,7]
[400563699,1767721842551,-475.0,0.00023552,7]
[400563700,1767721842565,-475.0,0.00023552,7]
[400563701,1767721842576,-475.0,0.00023552,7]
[400563702,1767721842586,-475.0,0.00023552,7]
[400563703,1767721842597,-475.0,0.00023552,7]
[400563704,1767721842609,-475.0,0.00023552,7]
[400563705,1767721842621,-475.0,0.00023552,7]
[400563706,1767721842635,-475.0,0.00023552,7]
[400563707,1767721842651,-475.0,0.00023552,7]
[400563708,1767721842663,-475.0,0.00023552,7]
[400563709,1767721842673,-475.0,0.00023552,7]
[400563710,1767721842685,-475.0,0.00023552,7]
[400563711,1767721842697,-475.0,0.00023552,7]
[400563712,1767721842710,-475.0,0.00023552,7]
[400563713,1767721842722,-475.0,0.00023552,7]
[400563714,1767721842734,-475.0,0.00023552,7]
[400563715,1767721842744,-475.0,0.00023552,7]
[400563716,1767721842755,-475.0,0.00023552,7]
[400563717,1767721842766,-475.0,0.00023552,7]
[400563718,1767721842777,-475.0,0.00023552,7]
[400563719,1767721842788,-475.0,0.00023552,7]
[400563720,1767721842801,-475.0,0.00023552,7]
[400563721,1767721842814,-475.0,0.00023552,7]
[400563722,1767721842829,-475.0,0.00023552,7]
[400563723,1767721842843,-475.0,0.00023552,7]
[400563724,1767721842858,-475.0,0.00023552,7]
[400563725,1767721842874,-475.0,0.00023552,7]
[400563726,1767721842891,-475.0,0.00023552,7]
[400563727,1767721842907,-475.0,0.00023552,7]
[400563728,1767721842920,-475.0,0.00023552,7]
[400563729,1767721842933,-475.0,0.00023552,7]
[400563730,1767721842945,-475.0,0.00023552,7]
[400563731,1767721842958,-475.0,0.00023552,7]
[400563732,1767721842971,-475.0,0.00023552,7]
[400563733,1767721842988,-475.0,0.00023552,7]
[400563734,1767721843000,-475.0,0.00023552,7]
[400563735,1767721843014,-475.0,0.00023552,7]
[400563737,1767721843027,-475.0,0.00023552,7]
[400563738,1767721843041,-475.0,0.00023552,7]
[400563739,1767721843054,-475.0,0.00023552,7]
[400563740,1767721843066,-475.0,0.00023552,7]
[400563741,1767721843079,-475.0,0.00023552,7]
[400563742,1767721843092,-475.0,0.00023552,7]
[400563743,1767721843105,-183.3,0.00023556,2]
[400563744,1767721843117,-600.0,0.00023562,2]
[400563745,1767721843130,-2100.0,0.00023573,2]
[400563746,1767721843146,-522.4,0.000236,2]
[400563747,1767721843159,-2100.0,0.000236,2]
[400563748,1767721843172,-625.0,0.00023634,2]
[400563749,1767721843185,-1365.0,0.00023656,2]
[400563750,1767721843198,-2145.0,0.00023656,2]
[400563751,1767721843211,-628.0,0.00023656,2]
[400563752,1767721843222,-150.275,0.00023656,2]
[400563753,1767721843234,-150.994,0.00023656,2]
[400563754,1767721843245,-625.0,0.00023659,2]
[400563755,1767721843257,-534.78502732,0.0002374,2]
[400563756,1767721843270,-2139.14010928,0.0002374,2]
[400563757,1767721843283,-4813.06524587,0.0002374,2]
[400563758,1767721843296,-2100.0,0.00023752,2]
[400563759,1767721843308,-2100.0,0.0002378,2]
[400563760,1767721843321,-11034.61992398,0.00023787,2]
[400563761,1767721843336,-291.01961491,0.00023799,2]
[400563762,1767721843348,-1164.07845965,0.00023799,2]
[400563763,1767721843361,-2619.17653421,0.00023799,2]
[400563764,1767721843373,-4656.3138386,0.00023799,2]
[400563765,1767721843387,-7275.49037281,0.00023799,2]
[400563766,1767721843402,-10476.70613685,0.00023799,2]
[400563767,1767721843415,-24466.81,0.000238,2]
[400563768,1767721843427,-500.0,0.00023873,2]
[400563769,1767721843438,-188.11386458,0.00023901,2]
[400563770,1767721843450,-500.0,0.00023906,2]
[400563771,1767721843462,-625.0,0.00023964,2]
[400563772,1767721843473,-3283.93,0.00024,7]
[400563773,1767721843483,-1041.66666667,0.00024,7]
[400563774,1767721843495,-2000.0,0.00024,7]
[400563775,1767721843507,-279.35774616,0.00024012,2]
[400563776,1767721843519,-625.0,0.00024059,2]
[400563777,1767721843531,-2100.0,0.0002406,2]
[400563778,1767721843543,-2100.0,0.0002408,2]
[400563779,1767721843555,-500.0,0.00024089,2]
[400563780,1767721843567,-750.0,0.0002411,2]
[400563781,1767721843579,-2100.0,0.00024117,2]
[400563782,1767721843591,-500.0,0.00024152,2]
[400563783,1767721843604,-2100.0,0.00024245,2]
[400563784,1767721843618,-500.0,0.00024266,2]
[400563785,1767721843629,-500.0,0.00024302,2]
[400563786,1767721843643,-2100.0,0.00024364,2]
[400563787,1767721843809,-2100.0,0.00024388,2]
[400563788,1767721843833,-500.0,0.00024431,2]
[400563789,1767721843845,-2100.0,0.00024447,2]
[400563790,1767721843855,-500.0,0.00024452,2]
[400563791,1767721843865,-171.0,0.00024466,13]
[400563792,1767721843876,-2100.0,0.00024494,2]
[400563793,1767721843886,-2100.0,0.00024525,2]
[400563794,1767721843897,-2760.87,0.000246,14]
[400563795,1767721843908,-900.0,0.00024658,2]
[400563796,1767721843918,-500.0,0.00024658,2]
[400563797,1767721843929,-2100.0,0.00024686,2]
[400563798,1767721843940,-228.78,0.000247,7]
[400563799,1767721843950,-268.84,0.000247,7]
[400563800,1767721843960,-15905.50371464,0.000247,3]
[400563801,1767721843970,-2100.0,0.00024704,2]
[400563802,1767721843980,-500.0,0.00024756,2]
[400563803,1767721843990,-2100.0,0.00024786,2]
[400563804,1767721843999,-500.0,0.00024795,2]
[400563805,1767721844010,-992.15103229,0.00024802,20]
[400563806,1767721844019,-2100.0,0.00024808,2]
[400563807,1767721844030,-212.54773642,0.00024899,2]
[400563808,1767721844041,-151.0,0.000249,7]
[400563809,1767721844050,-258.099142,0.000249,7]
[400563810,1767721844060,-258.099142,0.000249,7]
[400563811,1767721844071,-258.099142,0.000249,7]
[400563812,1767721844080,-258.099142,0.000249,7]
[400563813,1767721844090,-246.520699,0.000249,7]
[400563814,1767721844100,-246.520699,0.000249,7]
[400563815,1767721844110,-246.520699,0.000249,7]
[400563816,1767721844120,-246.520699,0.000249,7]
[400563817,1767721844130,-151.0,0.000249,7]
[400563818,1767721844139,-151.0,0.000249,7]
[400563819,1767721844150,-151.0,0.000249,7]
[400563820,1767721844159,-178.486087,0.000249,7]
[400563821,1767721844169,-178.486087,0.000249,7]
[400563822,1767721844179,-178.486087,0.000249,7]
[400563823,1767721844189,-178.486087,0.000249,7]
[400563824,1767721844199,-151.0,0.000249,7]
[400563825,1767721844208,-151.0,0.000249,7]
[400563826,1767721844219,-151.0,0.000249,7]
[400563827,1767721844228,-151.0,0.000249,7]
[400563828,1767721844237,-151.0,0.000249,7]
[400563829,1767721844247,-182.954816,0.000249,7]
[400563830,1767721844256,-638207.028461,0.000249,2]
[400563831,1767721844267,-151.0,0.000249,7]
[400563832,1767721844276,-5000.0,0.000249,7]
[400563833,1767721844286,-5000.0,0.000249,7]
[400563834,1767721844299,-5000.0,0.000249,7]
[400563835,1767721844309,-5000.0,0.000249,7]
[400563836,1767721844319,-151.893811,0.000249,7]
[400563837,1767721844329,-176.786529,0.000249,7]
[400563838,1767721844339,-176.786529,0.000249,7]
[400563839,1767721844350,-176.786529,0.000249,7]
[400563840,1767721844360,-176.786529,0.000249,7]
[400563841,1767721844370,-151.0,0.000249,7]
[400563842,1767721844379,-151.0,0.000249,7]
[400563843,1767721844389,-151.0,0.000249,7]
[400563844,1767721844401,-151.0,0.000249,7]
[400563845,1767721844412,-156.236454,0.000249,7]
[400563846,1767721844423,-264.296067,0.000249,7]
[400563847,1767721844434,-262.607866,0.000249,7]
[400563848,1767721844444,-151.0,0.000249,7]
[400563849,1767721844454,-151.0,0.000249,7]
[400563850,1767721844464,-151.0,0.000249,7]
[400563851,1767721844473,-151.0,0.000249,7]
[400563852,1767721844483,-151.0,0.000249,7]
[400563853,1767721844492,-627.205601,0.000249,7]
[400563854,1767721844502,-224.055312,0.000249,7]
[400563855,1767721844512,-627.205601,0.000249,7]
[400563856,1767721844521,-500.0,0.00024932,2]
[400563857,1767721844531,-2100.0,0.00024966,2]
[400563858,1767721844541,-2100.0,0.0002499,2]
[400563859,1767721844551,-1041.66666667,0.00025,7]
[400563861,1767721844561,-1020.73276343,0.00025,2]
[400563863,1767721844570,-2000.0,0.00025,7]
[400563864,1767721844580,-500.0,0.00025002,7]
[400563865,1767721844589,-500.0,0.00025054,7]
[400563866,1767721844598,-2100.0,0.00025063,7]
[400563867,1767721844608,-500.0,0.00025069,2]
[400563869,1767721844618,-2100.0,0.00025084,7]
[400563870,1767721844627,-500.0,0.00025093,7]
[400563871,1767721844637,-500.0,0.00025094,7]
[400563872,1767721844649,-3964.20106546,0.00025118,7]
[400563873,1767721844661,-500.0,0.00025134,7]
[400563875,1767721844671,-250.0,0.00025205,2]
[400563877,1767721844680,-880.39814706,0.00025205,2]
[400563879,1767721844690,-500.0,0.00025206,2]
[400563880,1767721844699,-183.3,0.00025325,2]
[400563881,1767721844709,-500.0,0.00025343,2]
[400563882,1767721844719,-24466.81,0.000254,2]
[400563884,1767721844729,-540.64252559,0.00025463,2]
[400563886,1767721844738,-500.0,0.0002548,2]
[400563888,1767721844747,-11034.61992398,0.00025482,2]
[400563890,1767721844757,-153.743312,0.00025482,7]
[400563892,1767721844766,-153.789809,0.00025482,7]
[400563895,1767721844775,-176.133271,0.00025482,7]
[400563897,1767721844785,-151.0,0.00025482,7]
[400563898,1767721844794,-618.008304,0.00025482,7]
[400563901,1767721844804,-618.008304,0.00025482,7]
[400563902,1767721844813,-618.008304,0.00025482,7]
[400563904,1767721844823,-618.008304,0.00025482,7]
[400563906,1767721844836,-191.004961,0.0002551,7]
[400563908,1767721844845,-151.0,0.0002551,7]
[400563910,1767721844856,-151.0,0.0002551,7]
[400563912,1767721844866,-151.0,0.0002551,7]
[400563915,1767721844881,-151.0,0.0002551,7]
[400563917,1767721844892,-151.0,0.0002551,7]
[400563919,1767721844902,-409.150764,0.0002551,7]
[400563921,1767721844911,-409.150764,0.0002551,7]
[400563922,1767721844921,-409.150764,0.0002551,7]
[400563924,1767721844931,-409.150764,0.0002551,7]
[400563927,1767721844941,-181.138598,0.0002551,7]
[400563929,1767721844952,-151.0,0.0002551,7]
[400563930,1767721844961,-251.46189,0.0002551,7]
[400563933,1767721844971,-164.05427,0.0002551,7]
[400563935,1767721844980,-501.631256,0.0002551,7]
[400563937,1767721844989,-501.631256,0.0002551,7]
[400563939,1767721844999,-501.631256,0.0002551,7]
[400563941,1767721845008,-501.631256,0.0002551,7]
[400563943,1767721845018,-500.0,0.00025617,2]
[400563945,1767721845027,-350.0,0.00025753,2]
[400563947,1767721845036,-500.0,0.00025754,2]
[400563949,1767721845045,-1000.0,0.00025796,10]
[400563951,1767721845054,-1000.0,0.00025796,10]
[400563953,1767721845063,-579.0,0.00025796,10]
[400563955,1767721845073,-504.0,0.00025891,2]
[400563957,1767721845082,-151.0,0.00026,7]
[400563959,1767721845091,-151.0,0.00026,7]
[400563961,1767721845100,-151.0,0.00026,7]
[400563963,1767721845110,-151.0,0.00026,7]
[400563965,1767721845119,-175.241669,0.00026,7]
[400563966,1767721845128,-175.241669,0.00026,7]
[400563969,1767721845138,-175.241669,0.00026,7]
[400563971,1767721845150,-175.241669,0.00026,7]
[400563973,1767721845159,-1019.0,0.00026,2]
[400563974,1767721845168,-1041.66666667,0.00026,7]
[400563976,1767721845177,-2000.0,0.00026,7]
[400563978,1767721845187,-174.0,0.0002611,19]
[400563981,1767721845196,-151.0,0.00026213,7]
[400563982,1767721845206,-155.649023,0.00026213,7]
[400563984,1767721845215,-151.0,0.00026213,7]
[400563986,1767721845225,-152.72294,0.00026213,7]
[400563988,1767721845234,-151.0,0.00026213,7]
[400563990,1767721845244,-151.0,0.00026213,7]
[400563993,1767721845253,-151.0,0.00026213,7]
[400563994,1767721845264,-151.0,0.00026213,7]
[400563997,1767721845274,-151.0,0.00026213,7]
[400563999,1767721845284,-151.0,0.00026213,7]
[400564002,1767721845294,-151.0,0.00026213,7]
[400564004,1767721845303,-151.0,0.00026213,7]
[400564006,1767721845312,-151.0,0.00026213,7]
[400564008,1767721845322,-1121.58099958,0.00026284,23]
[400564010,1767721845332,-450.0,0.00026301,2]
[400564013,1767721845342,-3283.93,0.000266,7]
[400564015,1767721845352,-1365.0,0.00026656,2]
[400564016,1767721845362,-2145.0,0.00026656,2]
[400564019,1767721845372,-628.0,0.00026656,2]
[400564021,1767721845381,-10115.60945091,0.00026796,2]
[400564023,1767721845392,-550.0,0.00026849,2]
[400564025,1767721845402,-2760.87,0.000269,14]
[400564026,1767721845415,-228.78,0.00027,7]
[400564029,1767721845427,-268.84,0.00027,7]
[400564030,1767721845438,-184.0,0.00027,7]
[400564032,1767721845448,-1019.0,0.00027,2]
[400564034,1767721845458,-2000.0,0.00027,7]
[400564036,1767721845468,-183.3,0.00027093,2]
[400564038,1767721845477,-11034.61992398,0.00027177,2]
[400564040,1767721845487,-1825.86,0.00027397,2]
[400564042,1767721845497,-223.81332617,0.00027397,2]
[400564045,1767721845508,-156.66932831,0.00027397,2]
[400564047,1767721845517,-650.0,0.00027397,5]
[400564049,1767721845527,-300.0,0.00027397,2]
[400564050,1767721845536,-300.0,0.00027397,2]
[400564052,1767721845546,-300.0,0.00027397,2]
[400564054,1767721845556,-300.0,0.00027397,2]
[400564057,1767721845566,-300.0,0.00027397,2]
[400564059,1767721845575,-300.0,0.00027397,2]
[400564061,1767721845584,-300.0,0.00027397,2]
[400564063,1767721845594,-300.0,0.00027397,2]
[400564064,1767721845603,-300.0,0.00027397,2]
[400564066,1767721845613,-300.0,0.00027397,2]
[400564068,1767721845622,-300.0,0.00027397,2]
[400564070,1767721845632,-300.0,0.00027397,2]
[400564072,1767721845642,-300.0,0.00027397,2]
[400564074,1767721845651,-300.0,0.00027397,2]
[400564076,1767721845660,-300.0,0.00027397,2]
[400564078,1767721845670,-300.0,0.00027397,2]
[400564080,1767721845679,-300.0,0.00027397,2]
[400564082,1767721845689,-300.0,0.00027397,2]
[400564084,1767721845698,-300.0,0.00027397,2]
[400564086,1767721845708,-300.0,0.00027397,2]
[400564088,1767721845718,-300.0,0.00027397,2]
[400564090,1767721845729,-300.0,0.00027397,2]
[400564092,1767721845738,-300.0,0.00027397,2]
[400564094,1767721845747,-300.0,0.00027397,2]
[400564096,1767721845757,-300.0,0.00027397,2]
[400564098,1767721845767,-300.0,0.00027397,2]
[400564100,1767721845776,-300.0,0.00027397,2]
[400564102,1767721845785,-300.0,0.00027397,2]
[400564104,1767721845795,-300.0,0.00027397,2]
[400564107,1767721845804,-300.0,0.00027397,2]
[400564109,1767721845814,-300.0,0.00027397,2]
[400564111,1767721845822,-300.0,0.00027397,2]
[400564112,1767721845832,-300.0,0.00027397,2]
[400564114,1767721845841,-300.0,0.00027397,2]
[400564116,1767721845853,-300.0,0.00027397,2]
[400564118,1767721845862,-300.0,0.00027397,2]
[400564120,1767721845871,-300.0,0.00027397,2]
[400564122,1767721845881,-300.0,0.00027397,2]
[400564124,1767721845892,-300.0,0.00027397,2]
[400564126,1767721845900,-300.0,0.00027397,2]
[400564128,1767721845910,-300.0,0.00027397,2]
[400564130,1767721845919,-153.720433,0.00027397,7]
[400564133,1767721845933,-500.0,0.00027397,5]
[400564135,1767721845943,-514.72943371,0.00027397,5]
[400564137,1767721845953,-583.70254975,0.00027463,2]
[400564139,1767721845963,-151.0,0.00027597,7]
[400564141,1767721845972,-24466.81,0.000276,2]
[400564143,1767721845982,-198.0,0.00027753,26]
[400564145,1767721845991,-1257.03628131,0.00027766,26]
[400564147,1767721846000,-1000.0,0.00027945,5]
[400564149,1767721846010,-750.0,0.00027945,5]
[400564151,1767721846020,-250.0,0.00027945,5]
[400564153,1767721846029,-250.0,0.00027945,5]
[400564156,1767721846039,-1019.0,0.00028,2]
[400564159,1767721846048,-2000.0,0.00028,7]
[400564161,1767721846057,-1000.0,0.00028375,30]
[400564163,1767721846067,-1000.0,0.00028375,30]
[400564165,1767721846076,-1000.0,0.00028375,30]
[400564167,1767721846085,-850.0,0.00028493,5]
[400564169,1767721846094,-1344.52633851,0.00028493,5]
[400564171,1767721846102,-350.0,0.00028493,5]
[400564173,1767721846112,-350.0,0.00028493,5]
[400564175,1767721846120,-3305.68629215,0.00028593,27]
[400564177,1767721846129,-1825.86,0.00028767,4]
[400564179,1767721846139,-10000.0,0.00028846,3]
[400564181,1767721846149,-183.3,0.00028862,3]
[400564183,1767721846159,-11034.61992398,0.00028872,2]
[400564185,1767721846168,-1019.0,0.00029,2]
[400564187,1767721846177,-2000.0,0.00029,7]
[400564189,1767721846186,-950.0,0.00029041,5]
[400564191,1767721846195,-450.0,0.00029041,5]
[400564193,1767721846204,-450.0,0.00029041,5]
[400564195,1767721846212,-1398.25988461,0.00029248,29]
[400564197,1767721846221,-209.0,0.00029397,34]
[400564199,1767721846230,-626.76257392,0.00029463,2]
[400564201,1767721846241,-210.16908342,0.00029475,2]
[400564203,1767721846250,-1050.0,0.00029589,5]
[400564205,1767721846259,-550.0,0.00029589,5]
[400564207,1767721846269,-550.0,0.00029589,5]
[400564209,1767721846278,-3283.93,0.000296,7]
[400564211,1767721846288,-1365.0,0.00029656,2]
[400564213,1767721846298,-2145.0,0.00029656,2]
[400564215,1767721846308,-628.0,0.00029656,2]
[400564217,1767721846317,-745.0,0.00029912,3]
[400564219,1767721846327,-166.0,0.0003,14]
[400564221,1767721846336,-1019.0,0.0003,7]
[400564223,1767721846345,-2000.0,0.0003,7]
[400564225,1767721846354,-2874.83428113,0.000301,7]
[400564227,1767721846365,-10000.0,0.000301,2]
[400564229,1767721846375,-1000.0,0.00030136,14]
[400564230,1767721846384,-1825.86,0.00030136,6]
[400564231,1767721846396,-1000.0,0.00030136,14]
[400564232,1767721846404,-167.90581026,0.00030136,14]
[400564233,1767721846413,-151.0,0.00030136,14]
[400564234,1767721846422,-1150.0,0.00030137,5]
[400564235,1767721846431,-650.0,0.00030137,5]
[400564236,1767721846440,-650.0,0.00030137,5]
[400564237,1767721846449,-228.78,0.000302,7]
[400564238,1767721846459,-268.84,0.000302,7]
[400564239,1767721846468,-2760.87,0.000302,14]
[400564240,1767721846477,-10115.60945091,0.00030313,2]
[400564241,1767721846487,-1000.0,0.00030402,14]
[400564242,1767721846497,-151.0,0.00030512,14]
[400564243,1767721846506,-11034.61992398,0.00030566,2]
[400564244,1767721846515,-1220.0,0.00030607,30]
[400564245,1767721846525,-890.0,0.00030607,30]
[400564246,1767721846535,-987.5,0.00030607,30]
[400564247,1767721846544,-183.3,0.00030631,4]
[400564248,1767721846553,-1000.0,0.00030667,14]
[400564249,1767721846562,-1297.73266776,0.00030685,5]
[400564250,1767721846571,-750.0,0.00030685,5]
[400564252,1767721846581,-750.0,0.00030685,5]
[400564254,1767721846590,-24466.81,0.000307,2]
[400564256,1767721846599,-1545.02515501,0.0003073,31]
[400564258,1767721846608,-2436.38343228,0.00030789,2]
[400564260,1767721846618,-10000.0,0.00030832,15]
[400564262,1767721846627,-151.0,0.00030888,14]
[400564264,1767721846637,-1000.0,0.00030933,14]
[400564266,1767721846648,-896.69,0.00030958,30]
[400564267,1767721846657,-163.4725449,0.00031,120]
[400564269,1767721846667,-223.16224092,0.00031,120]
[400564271,1767721846677,-163.65081325,0.00031,120]
[400564273,1767721846686,-194.50754029,0.00031,120]
[400564274,1767721846696,-194.20318294,0.00031,120]
[400564276,1767721846705,-172.33135592,0.00031,120]
[400564278,1767721846715,-287.40793029,0.00031,120]
[400564279,1767721846724,-203.06425058,0.00031,120]
[400564281,1767721846734,-264.42543527,0.00031,120]
[400564282,1767721846743,-178.68711888,0.00031,120]
[400564284,1767721846754,-162.07078001,0.00031,120]
[400564286,1767721846764,-180.65011172,0.00031,120]
[400564287,1767721846773,-180.06087287,0.00031,120]
[400564288,1767721846783,-1488.54574986,0.00031,120]
[400564289,1767721846793,-185.65429275,0.00031,120]
[400564290,1767721846803,-1019.0,0.00031,7]
[400564291,1767721846812,-2000.0,0.00031,7]
[400564292,1767721846822,-2436.38343228,0.00031167,2]